bitfinex/quotes_BTCUSD_20251001
["timestamp","ask_amount","ask_price","bid_price","bid_amount"]
[1759290262095,0.23407,114320.0,114310.0,8.3406]
[1759290262679,0.23407,114320.0,114310.0,8.51556282]
[1759290263476,0.23407,114320.0,114310.0,8.3406]
[1759290263706,0.23407,114320.0,114310.0,8.51556282]
[1759290264221,0.23407,114320.0,114310.0,8.3406]
[1759290264519,0.23407,114320.0,114310.0,8.51556282]
[1759290264845,0.23407,114320.0,114310.0,8.3406]
[1759290265048,0.23407,114320.0,114310.0,8.51556282]
[1759290266424,0.22529796,114320.0,114310.0,8.51556282]
[1759290266653,0.0241,114320.0,114310.0,8.51556282]
[1759290267286,0.0241,114320.0,114310.0,9.40676282]
[1759290269658,0.0241,114320.0,114310.0,8.40145468]
[1759290269879,0.19904751,114320.0,114310.0,9.31564282]
[1759290270124,0.19904751,114320.0,114310.0,9.40656282]
[1759290270520,0.0241,114320.0,114310.0,8.33864282]
[1759290270665,0.0241,114320.0,114310.0,9.40648282]
[1759290271869,0.19904751,114320.0,114310.0,8.33864282]
[1759290272046,0.19904751,114320.0,114310.0,9.40648282]
[1759290272252,0.19904751,114320.0,114310.0,8.83770497]
[1759290272463,0.19904751,114320.0,114310.0,8.12791326]
[1759290272681,0.19904751,114320.0,114310.0,9.19567326]
[1759290275813,0.19904751,114320.0,114310.0,8.12791326]
[1759290276026,0.19904751,114320.0,114310.0,9.19563326]
[1759290276337,0.19904751,114320.0,114310.0,8.12791326]
[1759290276539,0.19904751,114320.0,114310.0,9.19559326]
[1759290277040,0.0241,114320.0,114310.0,9.19559326]
[1759290278273,0.19904751,114320.0,114310.0,9.19559326]
[1759290280120,0.19904751,114320.0,114310.0,8.12791326]
[1759290280351,0.19904751,114320.0,114310.0,9.19555326]
[1759290281774,0.19904751,114320.0,114310.0,8.12791326]
[1759290281934,0.19904751,114320.0,114310.0,9.19555326]
[1759290282511,0.0241,114320.0,114310.0,9.19555326]
[1759290282924,0.19904751,114320.0,114310.0,9.19555326]
[1759290284515,0.19904751,114320.0,114310.0,9.17790497]
[1759290287518,0.0241,114320.0,114310.0,9.17790497]
[1759290287748,0.19904751,114320.0,114310.0,9.17790497]
[1759290288113,0.0241,114320.0,114310.0,9.17790497]
[1759290288552,0.19904751,114320.0,114310.0,9.17790497]
[1759290290816,0.19904751,114320.0,114310.0,8.11026497]
[1759290290977,0.19904751,114320.0,114310.0,9.17790497]
[1759290291203,0.19904751,114320.0,114310.0,7.93530215]
[1759290291415,0.19904751,114320.0,114310.0,9.00294215]
[1759290292616,0.20403751,114320.0,114310.0,7.93530215]
[1759290292825,0.20403751,114320.0,114310.0,9.00294215]
[1759290294560,0.20403751,114320.0,114310.0,7.93530215]
[1759290294793,0.20403751,114320.0,114310.0,7.9534977]
[1759290295043,0.29342298,114320.0,114310.0,8.7718577]
[1759290295226,0.29342298,114320.0,114310.0,9.0211377]
[1759290295862,0.31967604,114320.0,114310.0,9.0211377]
[1759290296579,0.31967604,114320.0,114310.0,8.9302177]
[1759290296776,0.31967604,114320.0,114310.0,9.0211377]
[1759290299368,0.31967604,114320.0,114310.0,9.00294215]
[1759290299771,0.31967604,114320.0,114310.0,1.23132]
[1759290299974,0.31967604,114320.0,114310.0,0.16368]
[1759290300499,0.31967604,114320.0,114310.0,1.16012]
[1759290303094,0.31967604,114320.0,114310.0,0.16368]
[1759290303610,0.31967604,114320.0,114310.0,1.16524]
[1759290304032,0.31967604,114320.0,114310.0,1.23164]
[1759290304253,0.31967604,114320.0,114310.0,0.16368]
[1759290304453,0.31967604,114320.0,114310.0,1.14296]
[1759290304886,0.34982794,114320.0,114310.0,0.16368]
[1759290305063,0.34982794,114320.0,114310.0,1.1354]
[1759290306158,0.34982794,114320.0,114310.0,0.16368]
[1759290306359,0.34982794,114320.0,114310.0,1.23168]
[1759290306781,0.34982794,114320.0,114310.0,0.16368]
[1759290306979,0.34982794,114320.0,114310.0,1.23164]
[1759290307344,0.34982794,114320.0,114310.0,0.77696]
[1759290307524,0.34982794,114320.0,114310.0,0.16368]
[1759290307730,0.20511472,114310.0,114300.0,0.01631274]
[1759290307929,0.31776019,114310.0,114300.0,0.99503274]
[1759290308135,0.32275019,114310.0,114300.0,0.97872]
[1759290308337,0.34900744,114310.0,114300.0,0.97872]
[1759290310626,0.34900744,114310.0,114300.0,0.99473728]
[1759290310856,0.34900744,114310.0,114300.0,0.97872]
[1759290313412,0.17497812,114300.0,114290.0,0.01702107]
[1759290313573,0.26436359,114300.0,114290.0,1.08391107]
[1759290313776,0.29261359,114300.0,114290.0,1.08387107]
[1759290313986,0.29261359,114300.0,114290.0,0.01595107]
[1759290314205,0.31887178,114300.0,114290.0,1.08391107]
[1759290314543,0.17499343,114290.0,114280.0,0.06614332]
[1759290314725,0.17796343,114290.0,114280.0,9.06816]
[1759290314926,0.20324343,114290.0,114280.0,8.0002]
[1759290315067,0.20324343,114290.0,114280.0,9.06816]
[1759290315278,0.2926289,114290.0,114280.0,9.06816]
[1759290315741,0.31888826,114290.0,114280.0,8.00028138]
[1759290315950,0.31888826,114290.0,114280.0,9.06820138]
[1759290316297,0.31888826,114290.0,114280.0,8.00028138]
[1759290316525,0.31888826,114290.0,114280.0,9.06820138]
[1759290317702,0.31888826,114290.0,114280.0,1.06820138]
[1759290320526,0.31888826,114290.0,114280.0,1.08459414]
[1759290320933,0.31888826,114290.0,114280.0,0.01667414]
[1759290321134,0.31888826,114290.0,114280.0,1.08467414]
[1759290322481,0.32763793,114290.0,114260.0,0.18297291]
[1759290322685,0.17502406,114270.0,114260.0,4.656e-05]
[1759290322893,0.19836406,114270.0,114260.0,8.09100656]
[1759290323742,0.19836406,114270.0,114260.0,8.34036656]
[1759290324827,0.19836406,114270.0,114260.0,8.01617814]
[1759290325152,0.20349406,114270.0,114260.0,8.34040656]
[1759290326551,0.19836406,114270.0,114260.0,8.34040656]
[1759290326777,0.20349406,114270.0,114260.0,8.40750306]
[1759290327186,0.20033406,114270.0,114260.0,9.29890306]
[1759290327426,0.20349406,114270.0,114260.0,8.23090306]
[1759290327612,0.22975496,114270.0,114260.0,9.29890306]
[1759290329378,0.22975496,114270.0,114260.0,9.23176656]
[1759290329508,0.22975496,114270.0,114260.0,9.23180656]
[1759290330612,0.22975496,114270.0,114260.0,0.98248656]
[1759290330613,0.31914043,114270.0,114260.0,0.98248656]
[1759290330815,0.31914043,114270.0,114260.0,0.16376656]
[1759290330963,0.31914043,114270.0,114260.0,1.23188656]
[1759290331158,0.31914043,114270.0,114260.0,0.16376656]
[1759290331368,0.31914043,114270.0,114260.0,1.13668656]
[1759290332263,0.31745378,114270.0,114260.0,1.13668656]
[1759290334366,0.31745378,114270.0,114260.0,0.16376656]
[1759290334799,0.31745378,114270.0,114260.0,1.12888656]
[1759290334956,0.31745378,114270.0,114260.0,1.14521972]
[1759290335160,0.31745378,114270.0,114260.0,1.24837972]
[1759290335731,0.31745378,114270.0,114260.0,1.14112656]
[1759290335732,0.34760568,114270.0,114260.0,1.14112656]
[1759290335944,0.34760568,114270.0,114260.0,1.23208656]
[1759290336794,0.34760568,114270.0,114260.0,1.23482146]
[1759290336996,0.34760568,114270.0,114260.0,1.23208656]
[1759290338104,0.34760568,114270.0,114260.0,1.24820716]
[1759290339309,0.34760568,114270.0,114260.0,1.23208656]
[1759290339956,0.34760568,114270.0,114260.0,1.24869428]
[1759290340159,0.34760568,114270.0,114260.0,1.23208656]
[1759290342252,0.34760568,114270.0,114260.0,0.16376656]
[1759290342475,0.34760568,114270.0,114260.0,1.12644656]
[1759290342476,0.68760568,114270.0,114260.0,1.12644656]
[1759290346836,0.17507002,114240.0,114220.0,0.22934691]
[1759290347050,0.17507002,114240.0,114230.0,8.28355338]
[1759290347259,0.19841002,114240.0,114230.0,8.16376]
[1759290347469,0.19841002,114240.0,114230.0,8.98264]
[1759290347652,0.2266492,114240.0,114230.0,8.98264]
[1759290347891,0.2266492,114240.0,114230.0,8.16376]
[1759290348066,0.2266492,114240.0,114230.0,9.14244]
[1759290348299,0.2298092,114240.0,114230.0,9.2334]
[1759290348501,0.05157918,114240.0,114230.0,9.40848535]
[1759290348694,0.2266492,114240.0,114230.0,9.23336]
[1759290349100,0.2266492,114240.0,114230.0,9.40844535]
[1759290349332,0.04960918,114240.0,114230.0,9.40844535]
[1759290351267,0.2267592,114240.0,114230.0,8.16376]
[1759290351473,0.31923467,114240.0,114230.0,9.23364]
[1759290351904,0.31923467,114240.0,114230.0,9.23352]
[1759290352110,0.34938657,114240.0,114230.0,0.89168]
[1759290352232,0.34938657,114240.0,114230.0,1.23352]
[1759290353058,0.34938657,114240.0,114230.0,0.16376]
[1759290353502,0.34938657,114240.0,114230.0,1.13228]
[1759290356236,0.04960918,114240.0,114230.0,9.13228]
[1759290356460,0.04960918,114240.0,114230.0,9.30736535]
[1759290356680,0.02334,114240.0,114230.0,9.30736535]
[1759290357749,0.19841002,114240.0,114230.0,8.16376]
[1759290357955,0.19841002,114240.0,114230.0,9.14272]
[1759290358240,0.19841002,114240.0,114230.0,8.16376]
[1759290358444,0.19841002,114240.0,114230.0,9.23372]
[1759290358653,0.19841002,114240.0,114230.0,9.23368]
[1759290358798,0.19841002,114240.0,114230.0,9.14268]
[1759290359014,0.19841002,114240.0,114230.0,9.23368]
[1759290359627,0.19841002,114240.0,114230.0,8.16376]
[1759290359828,0.28779549,114240.0,114230.0,8.17975623]
[1759290360059,0.28779549,114240.0,114230.0,8.79467623]
[1759290360209,0.28779549,114240.0,114230.0,9.24963623]
[1759290361018,0.28779549,114240.0,114230.0,8.17975623]
[1759290361445,0.28779549,114240.0,114230.0,9.24959623]
[1759290363060,0.28779549,114240.0,114230.0,8.17975623]
[1759290363308,0.29296549,114240.0,114230.0,8.17975623]
[1759290363513,0.29296549,114240.0,114230.0,9.15851623]
[1759290363690,0.29296549,114240.0,114230.0,9.24951623]
[1759290364490,0.29296549,114240.0,114230.0,9.23352]
[1759290365123,0.31923584,114240.0,114230.0,9.23352]
[1759290368436,0.31923584,114240.0,114230.0,8.16376]
[1759290368627,0.31923584,114240.0,114230.0,9.23348]
[1759290369145,0.31923584,114240.0,114230.0,0.89176]
[1759290369352,0.31923584,114240.0,114230.0,0.16376]
[1759290369559,0.31923584,114240.0,114230.0,0.98276]
[1759290369769,0.31923584,114240.0,114230.0,1.17203092]
[1759290369981,0.31923584,114240.0,114230.0,0.16376]
[1759290369982,0.34938774,114240.0,114230.0,0.16376]
[1759290370188,0.34938774,114240.0,114230.0,1.23336]
[1759290370595,0.34938774,114240.0,114230.0,0.77844]
[1759290370811,0.34938774,114240.0,114230.0,1.23344]
[1759290373190,0.32311739,114240.0,114230.0,1.23344]
[1759290373495,0.32311739,114240.0,114230.0,0.16376]
[1759290373698,0.32311739,114240.0,114230.0,1.23336]
[1759290374686,0.32311739,114240.0,114230.0,1.23328]
[1759290376153,0.17511166,114220.0,114190.0,0.14469874]
[1759290376355,0.17511166,114220.0,114210.0,0.091]
[1759290376532,0.17511166,114220.0,114210.0,8.091]
[1759290376734,0.17511166,114220.0,114210.0,8.26611601]
[1759290377113,0.19852166,114220.0,114210.0,8.26611601]
[1759290377330,0.19852166,114220.0,114210.0,9.40847601]
[1759290379674,0.19852166,114220.0,114210.0,8.33891601]
[1759290380032,0.19852166,114220.0,114210.0,9.40839601]
[1759290380659,0.20064166,114220.0,114210.0,8.1638]
[1759290380948,0.20378166,114220.0,114210.0,9.40839601]
[1759290381241,0.02341,114220.0,114210.0,9.40839601]
[1759290381398,0.19851068,114220.0,114210.0,9.40839601]
[1759290384855,0.19851068,114220.0,114210.0,9.15799601]
[1759290385059,0.19851068,114220.0,114210.0,9.23512]
[1759290385263,0.19851068,114220.0,114210.0,9.41023601]
[1759290385994,0.19851068,114220.0,114210.0,9.23512]
[1759290386335,0.19851068,114220.0,114210.0,9.41023601]
[1759290386881,0.19851068,114220.0,114210.0,8.33891601]
[1759290387115,0.19851068,114220.0,114210.0,9.41023601]
[1759290388421,0.19851068,114220.0,114210.0,9.23512]
[1759290388718,0.19851068,114220.0,114210.0,9.41011601]
[1759290389288,0.19851068,114220.0,114210.0,9.235]
[1759290389492,0.19851068,114220.0,114210.0,9.41011601]
[1759290390095,0.19851068,114220.0,114210.0,9.235]
[1759290390294,0.19851068,114220.0,114210.0,9.23492]
[1759290390984,0.19851068,114220.0,114210.0,9.23484]
[1759290391478,0.19851068,114220.0,114210.0,8.1638]
[1759290391704,0.19851068,114220.0,114210.0,9.40991601]
[1759290392167,0.19851068,114220.0,114210.0,9.26373736]
[1759290393219,0.02341,114220.0,114210.0,9.43885337]
[1759290395717,0.02341,114220.0,114210.0,8.36785337]
[1759290395922,0.19851068,114220.0,114210.0,8.36785337]
[1759290396123,0.02341,114220.0,114210.0,9.43869337]
[1759290397210,0.02341,114220.0,114210.0,9.50150523]
[1759290397365,0.02341,114220.0,114210.0,9.43869337]
[1759290397983,0.02341,114220.0,114210.0,9.50150523]
[1759290399420,0.1981553,114220.0,114210.0,8.36785337]
[1759290399638,0.1981553,114220.0,114210.0,9.43861337]
[1759290400266,0.1981553,114220.0,114210.0,8.36785337]
[1759290400445,0.1981553,114220.0,114210.0,9.43861337]
[1759290400811,0.02305462,114220.0,114210.0,9.43861337]
[1759290401416,0.02305462,114220.0,114210.0,8.36785337]
[1759290401599,0.02305462,114220.0,114210.0,9.43857337]
[1759290403661,0.1981553,114220.0,114210.0,8.36785337]
[1759290403921,0.1981553,114220.0,114210.0,9.43841337]
[1759290404129,0.02305462,114220.0,114210.0,9.43841337]
[1759290404477,0.1981553,114220.0,114210.0,8.36785337]
[1759290404682,0.1981553,114220.0,114210.0,9.40947601]
[1759290404929,0.1981553,114220.0,114210.0,8.33891601]
[1759290405101,0.1981553,114220.0,114210.0,9.40947601]
[1759290405974,0.1981553,114220.0,114210.0,8.33891601]
[1759290406358,0.1981553,114220.0,114210.0,9.40947601]
[1759290407212,0.1981553,114220.0,114210.0,8.33891601]
[1759290407390,0.1981553,114220.0,114210.0,9.40947601]
[1759290407606,0.1981553,114220.0,114210.0,8.33891601]
[1759290407783,0.1981553,114220.0,114210.0,9.40947601]
[1759290409157,0.1981553,114220.0,114210.0,8.33891601]
[1759290409366,0.1981553,114220.0,114210.0,9.23432]
[1759290409565,0.2034153,114220.0,114210.0,8.33891601]
[1759290409783,0.2034153,114220.0,114210.0,9.40939601]
[1759290410000,0.2002753,114220.0,114210.0,9.40939601]
[1759290410206,0.1981553,114220.0,114210.0,9.40939601]
[1759290411802,0.2001453,114220.0,114210.0,8.19365702]
[1759290411988,0.29246077,114220.0,114210.0,1.01273702]
[1759290412184,0.29246077,114220.0,114210.0,1.26413702]
[1759290412503,0.29246077,114220.0,114210.0,0.19365702]
[1759290412722,0.29246077,114220.0,114210.0,1.26417702]
[1759290412918,0.29246077,114220.0,114210.0,0.80913702]
[1759290413126,0.32261267,114220.0,114210.0,0.98288]
[1759290413478,0.32261267,114220.0,114210.0,1.23428]
[1759290420316,0.28754077,114220.0,114210.0,1.23428]
[1759290420520,0.29246077,114220.0,114210.0,1.23428]
[1759290421620,0.28754077,114220.0,114210.0,1.23428]
[1759290423213,0.11244009,114220.0,114210.0,1.40939601]
[1759290423414,0.02305462,114220.0,114210.0,9.40939601]
[1759290425915,0.02305462,114220.0,114210.0,8.33891601]
[1759290426124,0.02305462,114220.0,114210.0,9.31911601]
[1759290426355,0.02305462,114220.0,114210.0,9.41011601]
[1759290427162,0.02305462,114220.0,114210.0,8.33891601]
[1759290427368,0.02305462,114220.0,114210.0,9.41011601]
[1759290428254,0.02305462,114220.0,114210.0,8.33891601]
[1759290428466,0.02305462,114220.0,114210.0,9.41007601]
[1759290428688,0.29246077,114220.0,114210.0,1.235]
[1759290428928,0.29246077,114220.0,114210.0,0.1638]
[1759290429101,0.29246077,114220.0,114210.0,1.144]
[1759290429326,0.29246077,114220.0,114210.0,1.235]
[1759290429683,0.29246077,114220.0,114210.0,1.41011601]
[1759290429883,0.28754077,114220.0,114210.0,1.235]
[1759290430083,0.28754077,114220.0,114210.0,1.41011601]
[1759290430291,0.28754077,114220.0,114210.0,9.41011601]
[1759290431663,0.28754077,114220.0,114210.0,9.235]
[1759290432509,0.28754077,114220.0,114210.0,8.1638]
[1759290432730,0.28754077,114220.0,114210.0,9.23504]
[1759290433645,0.28953077,114220.0,114210.0,9.144]
[1759290433821,0.28953077,114220.0,114210.0,9.235]
[1759290433997,0.28953077,114220.0,114210.0,8.89536076]
[1759290434202,0.28953077,114220.0,114210.0,9.0712]
[1759290434602,0.29246077,114220.0,114210.0,9.0712]
[1759290435563,0.29246077,114220.0,114210.0,8.0]
[1759290435889,0.29246077,114220.0,114210.0,9.07108]
[1759290436094,0.31873791,114220.0,114210.0,9.07108]
[1759290436722,0.28754077,114220.0,114210.0,9.24619601]
[1759290436968,0.28754077,114220.0,114210.0,9.07108]
[1759290437485,0.11244009,114220.0,114210.0,9.24619601]
[1759290437690,0.28754077,114220.0,114210.0,9.24619601]
[1759290437904,0.11244009,114220.0,114210.0,9.24619601]
[1759290438047,0.28754077,114220.0,114210.0,9.24619601]
[1759290438251,0.02305462,114220.0,114210.0,9.24619601]
[1759290439023,0.1981553,114220.0,114210.0,9.07108]
[1759290439250,0.1981553,114220.0,114210.0,8.0]
[1759290439452,0.2032753,114220.0,114210.0,9.07108]
[1759290439675,0.2032753,114220.0,114210.0,8.0]
[1759290439849,0.2032753,114220.0,114210.0,8.81916]
[1759290440063,0.29266077,114220.0,114210.0,9.07112]
[1759290440585,0.02305462,114220.0,114210.0,9.24623601]
[1759290440864,0.1981553,114220.0,114210.0,8.0]
[1759290441069,0.1981553,114220.0,114210.0,9.24627601]
[1759290441616,0.02305462,114220.0,114210.0,9.24627601]
[1759290441801,0.1981553,114220.0,114210.0,8.17511601]
[1759290441950,0.1981553,114220.0,114210.0,9.24623601]
[1759290443240,0.02305462,114220.0,114210.0,9.24623601]
[1759290443511,0.1981553,114220.0,114210.0,9.24623601]
[1759290443722,0.1981553,114220.0,114210.0,9.07112]
[1759290443968,0.1981553,114220.0,114210.0,9.24623601]
[1759290444536,0.02305462,114220.0,114210.0,9.24623601]
[1759290445054,0.1981553,114220.0,114210.0,9.24623601]
[1759290445441,0.1981553,114220.0,114210.0,9.00473255]
[1759290445859,0.1981553,114220.0,114210.0,9.04098956]
[1759290447154,0.1981553,114220.0,114210.0,7.96986956]
[1759290447342,0.1981553,114220.0,114210.0,9.04078956]
[1759290447714,0.1981553,114220.0,114210.0,7.96986956]
[1759290447930,0.1981553,114220.0,114210.0,9.04074956]
[1759290448751,0.1981553,114220.0,114210.0,7.96986956]
[1759290449250,0.1981553,114220.0,114210.0,9.04066956]
[1759290449757,0.2034953,114220.0,114210.0,9.04066956]
[1759290450430,0.1981553,114220.0,114210.0,9.04066956]
[1759290450639,0.1981553,114220.0,114210.0,8.86555355]
[1759290450846,0.2003053,114220.0,114210.0,8.86555355]
[1759290451026,0.2034953,114220.0,114210.0,8.86595355]
[1759290451790,0.2003053,114220.0,114210.0,9.04106956]
[1759290452190,0.1981553,114220.0,114210.0,7.96986956]
[1759290452398,0.1981553,114220.0,114210.0,9.04102956]
[1759290453301,0.1981553,114220.0,114210.0,8.86591355]
[1759290453501,0.1981553,114220.0,114210.0,9.04102956]
[1759290453654,0.02305462,114220.0,114210.0,9.04102956]
[1759290453888,0.1981553,114220.0,114210.0,9.04102956]
[1759290454711,0.1981553,114220.0,114210.0,9.00477255]
[1759290455318,0.1981553,114220.0,114210.0,9.00465255]
[1759290455498,0.1981553,114220.0,114210.0,8.82953654]
[1759290455670,0.1981553,114220.0,114210.0,9.00465255]
[1759290456261,0.2034953,114220.0,114210.0,9.00465255]
[1759290456922,0.1981553,114220.0,114210.0,9.00465255]
[1759290457457,0.1981553,114220.0,114210.0,8.82953654]
[1759290457891,0.1981553,114220.0,114210.0,9.00465255]
[1759290459302,0.1981553,114220.0,114210.0,8.82953654]
[1759290459508,0.1981553,114220.0,114210.0,9.00465255]
[1759290459947,0.1981553,114220.0,114210.0,9.03972698]
[1759290460907,0.1981553,114220.0,114210.0,9.03952698]
[1759290461904,0.1981553,114220.0,114210.0,8.86441097]
[1759290462239,0.1981553,114220.0,114210.0,9.03952698]
[1759290462442,0.1981553,114220.0,114210.0,7.96868698]
[1759290462643,0.1981553,114220.0,114210.0,8.86437097]
[1759290463545,0.1981553,114220.0,114210.0,9.03948698]
[1759290464680,0.1981553,114220.0,114210.0,9.00441255]
[1759290465186,0.1981553,114220.0,114210.0,8.82929654]
[1759290465387,0.1981553,114220.0,114210.0,9.00441255]
[1759290465791,0.1981553,114220.0,114210.0,8.82929654]
[1759290465955,0.1981553,114220.0,114210.0,7.75849654]
[1759290466153,0.1981553,114220.0,114210.0,8.82917654]
[1759290469861,0.1981553,114220.0,114210.0,7.75849654]
[1759290470066,0.1981553,114220.0,114210.0,8.82905654]
[1759290471164,0.2002453,114220.0,114210.0,7.79407393]
[1759290471363,0.2002453,114220.0,114210.0,8.86459393]
[1759290473338,0.2033953,114220.0,114210.0,7.79407393]
[1759290473542,0.1981553,114220.0,114210.0,8.86459393]
[1759290474642,0.2002453,114220.0,114210.0,8.86459393]
[1759290477514,0.2033953,114220.0,114210.0,8.86459393]
[1759290477725,0.2033953,114220.0,114210.0,7.79407393]
[1759290477851,0.2033953,114220.0,114210.0,8.86443393]
[1759290478074,0.2033953,114220.0,114210.0,7.79407393]
[1759290478270,0.2033953,114220.0,114210.0,8.86447393]
[1759290479367,0.29278077,114220.0,114210.0,7.79407393]
[1759290479567,0.29278077,114220.0,114210.0,1.10597739]
[1759290479749,0.31905724,114220.0,114210.0,1.10597739]
[1759290480692,0.31905724,114220.0,114210.0,0.65081739]
[1759290480900,0.31905724,114220.0,114210.0,1.10589739]
[1759290481328,0.31905724,114220.0,114210.0,1.10585739]
[1759290481543,0.34920914,114220.0,114210.0,0.03557739]
[1759290481750,0.34920914,114220.0,114210.0,0.64057739]
[1759290481977,0.17511601,114210.0,114200.0,0.16384]
[1759290482182,0.26974148,114210.0,114200.0,9.23412]
[1759290482393,0.29236148,114210.0,114200.0,9.23412]
[1759290482883,0.31864037,114210.0,114200.0,9.23412]
[1759290483625,0.34879227,114210.0,114200.0,8.19448059]
[1759290483827,0.34879227,114210.0,114200.0,9.26476059]
[1759290484071,0.34705218,114210.0,114200.0,9.26476059]
[1759290486388,0.34705218,114210.0,114200.0,8.80984059]
[1759290486592,0.34705218,114210.0,114200.0,9.26496059]
[1759290489073,0.34705218,114210.0,114200.0,9.44009193]
[1759290489074,0.31340037,114210.0,114200.0,9.44009193]
[1759290489246,0.31340037,114210.0,114200.0,9.26496059]
[1759290489454,0.31340037,114210.0,114200.0,9.44009193]
[1759290489673,0.31340037,114210.0,114200.0,9.40945134]
[1759290490734,0.31340037,114210.0,114200.0,9.2342]
[1759290490979,0.31340037,114210.0,114200.0,8.16384]
[1759290491159,0.31340037,114210.0,114200.0,9.2342]
[1759290491368,0.31549037,114210.0,114200.0,8.16384]
[1759290491572,0.34879227,114210.0,114200.0,9.23416]
[1759290492005,0.34879227,114210.0,114200.0,8.16384]
[1759290492208,0.34879227,114210.0,114200.0,9.23416]
[1759290493115,0.34879227,114210.0,114200.0,8.16384]
[1759290493352,0.34879227,114210.0,114200.0,9.2342]
[1759290493991,0.34879227,114210.0,114200.0,9.26421113]
[1759290494749,0.34879227,114210.0,114200.0,0.55797113]
[1759290495055,0.34879227,114210.0,114200.0,1.26413113]
[1759290495489,0.34879227,114210.0,114200.0,1.17333113]
[1759290495679,0.34879227,114210.0,114200.0,1.26433113]
[1759290496695,0.34879227,114210.0,114200.0,0.19385113]
[1759290496932,0.34879227,114210.0,114200.0,1.26429113]
[1759290499360,0.34879227,114210.0,114200.0,1.26425113]
[1759290499984,0.34879227,114210.0,114200.0,0.091]
[1759290500187,0.17513134,114200.0,114180.0,0.54563648]
[1759290500384,0.17513134,114200.0,114190.0,8.091]
[1759290500385,0.26456319,114200.0,114190.0,8.091]
[1759290500610,0.28978319,114200.0,114190.0,8.0]
[1759290500848,0.28978319,114200.0,114190.0,8.091]
[1759290501064,0.31928284,114200.0,114190.0,8.34228]
[1759290502638,0.31928284,114200.0,114190.0,8.34224]
[1759290505398,0.31928284,114200.0,114190.0,8.0]
[1759290505565,0.31928284,114200.0,114190.0,8.34212]
[1759290506098,0.31928284,114200.0,114190.0,8.0]
[1759290506522,0.31928284,114200.0,114190.0,8.34208]
[1759290507231,0.31928284,114200.0,114190.0,9.07032]
[1759290507455,0.31403284,114200.0,114190.0,9.07032]
[1759290508632,0.31403284,114200.0,114190.0,9.24546668]
[1759290509400,0.31403284,114200.0,114190.0,9.07032]
[1759290509698,0.31403284,114200.0,114190.0,9.24546668]
[1759290510455,0.1389015,114200.0,114190.0,9.24546668]
[1759290511437,0.02323638,114200.0,114190.0,9.24546668]
[1759290512401,0.02323638,114200.0,114190.0,9.64827854]
[1759290513633,0.02323638,114200.0,114190.0,9.58546668]
[1759290513835,0.02323638,114200.0,114190.0,9.67485215]
[1759290514043,0.02323638,114200.0,114190.0,9.69806052]
[1759290514258,0.02323638,114200.0,114190.0,9.75319893]
[1759290514912,0.02323638,114200.0,114190.0,9.75323893]
[1759290515117,0.02323638,114200.0,114190.0,8.60453215]
[1759290515321,0.02323638,114200.0,114190.0,8.47958708]
[1759290515568,0.02323638,114200.0,114190.0,9.54994708]
[1759290516360,0.02323638,114200.0,114190.0,8.47958708]
[1759290516764,0.02323638,114200.0,114190.0,9.48706167]
[1759290517077,0.02323638,114200.0,114190.0,7.9873962]
[1759290517246,0.20039772,114200.0,114190.0,8.8066362]
[1759290517445,0.20039772,114200.0,114190.0,9.0577562]
[1759290517446,0.20361772,114200.0,114190.0,9.0577562]
[1759290518639,0.20361772,114200.0,114190.0,7.9873962]
[1759290518885,0.20361772,114200.0,114190.0,9.0577562]
[1759290519082,0.20039772,114200.0,114190.0,9.0577562]
[1759290519262,0.20039772,114200.0,114190.0,7.9873962]
[1759290519500,0.02323638,114200.0,114190.0,9.0577162]
[1759290525452,0.20361772,114200.0,114190.0,7.9873962]
[1759290525652,0.29300319,114200.0,114190.0,8.88248952]
[1759290526052,0.29300319,114200.0,114190.0,7.81224952]
[1759290526267,0.29300319,114200.0,114190.0,8.88248952]
[1759290526554,0.29300319,114200.0,114190.0,8.42732952]
[1759290526773,0.29300319,114200.0,114190.0,7.81224952]
[1759290527082,0.31928362,114200.0,114190.0,8.88244952]
[1759290527488,0.31928362,114200.0,114190.0,7.81224952]
[1759290527707,0.31928362,114200.0,114190.0,8.88244952]
[1759290527894,0.31928362,114200.0,114190.0,8.79144952]
[1759290528056,0.31928362,114200.0,114190.0,8.88244952]
[1759290528737,0.34943552,114200.0,114190.0,7.81224952]
[1759290528953,0.34943552,114200.0,114190.0,8.88240952]
[1759290529790,0.34943552,114200.0,114190.0,7.81224952]
[1759290530094,0.34943552,114200.0,114190.0,8.88244952]
[1759290531816,0.34943552,114200.0,114190.0,7.81224952]
[1759290531956,0.20529858,114190.0,114180.0,0.19461531]
[1759290532173,0.29988405,114190.0,114180.0,9.26477531]
[1759290532404,0.32249405,114190.0,114180.0,9.26477531]
[1759290533047,0.32249405,114190.0,114180.0,9.43993733]
[1759290533286,0.31934405,114190.0,114180.0,9.26477531]
[1759290533478,0.31729405,114190.0,114180.0,9.26477531]
[1759290534084,0.34357782,114190.0,114180.0,9.26477531]
[1759290534288,0.34357782,114190.0,114180.0,9.43993733]
[1759290535457,0.34357782,114190.0,114180.0,9.26477531]
[1759290535884,0.34357782,114190.0,114180.0,9.43993733]
[1759290536092,0.34357782,114190.0,114180.0,8.19461531]
[1759290536234,0.34357782,114190.0,114180.0,9.26481531]
[1759290537878,0.34357782,114190.0,114180.0,9.43997733]
[1759290538263,0.34357782,114190.0,114180.0,9.26481531]
[1759290538483,0.34357782,114190.0,114180.0,9.43997733]
[1759290539559,0.34357782,114190.0,114180.0,9.26481531]
[1759290539771,0.34357782,114190.0,114180.0,9.43997733]
[1759290539772,0.31342592,114190.0,114180.0,9.43997733]
[1759290539976,0.28714215,114190.0,114180.0,9.40920202]
[1759290540908,0.28714215,114190.0,114180.0,8.16384]
[1759290541111,0.28714215,114190.0,114180.0,9.23388]
[1759290541311,0.28714215,114190.0,114180.0,9.40904202]
[1759290541675,0.28714215,114190.0,114180.0,9.23388]
[1759290541867,0.28714215,114190.0,114180.0,8.16384]
[1759290542301,0.28714215,114190.0,114180.0,9.23388]
[1759290542511,0.29234215,114190.0,114180.0,8.16384]
[1759290542666,0.28714215,114190.0,114180.0,9.23388]
[1759290542863,0.28714215,114190.0,114180.0,9.40904202]
[1759290544469,0.31342525,114190.0,114180.0,9.40904202]
[1759290545507,0.31342525,114190.0,114180.0,9.23388]
[1759290545712,0.31342525,114190.0,114180.0,9.40904202]
[1759290546723,0.31862525,114190.0,114180.0,8.19892097]
[1759290547162,0.31862525,114190.0,114180.0,9.17796097]
[1759290547353,0.31862525,114190.0,114180.0,9.26900097]
[1759290548455,0.31862525,114190.0,114180.0,8.19892097]
[1759290548669,0.34877715,114190.0,114180.0,8.19892097]
[1759290548862,0.34877715,114190.0,114180.0,9.17796097]
[1759290549069,0.34877715,114190.0,114180.0,9.26900097]
[1759290549568,0.34877715,114190.0,114180.0,8.19892097]
[1759290549773,0.34877715,114190.0,114180.0,0.16384]
[1759290549974,0.34877715,114190.0,114180.0,1.234]